[Event "AUT-ch Open 2020"]
[Site "Graz"]
[Date "2020.02.16"]
[Round "3.12"]
[White "Rieger, Robert"]
[Black "Palczert, Matyas"]
[Result "1-0"]
[ECO "B46"]
[WhiteElo "2320"]
[BlackElo "2094"]
[Annotator "ChessBase"]
[PlyCount "111"]
[EventDate "2020.02.14"]
[EventType "swiss"]
[EventCountry "AUT"]
[SourceTitle "playchess.com"]
[Source "ChessBase"]
[SourceQuality "1"]
[TimeControl "40/5400+30:1800+30"]

1. e4 {[%emt 0:00:00]} c5 {[%emt 0:00:00]} 2. Nf3 {[%emt 0:00:00]} e6 {[%emt 0:00:07]} 3. d4 {[%emt 0:00:00]} cxd4 {[%emt 0:00:07]} 4. Nxd4 {[%emt 0:00:00]} Nc6 {[%emt 0:00:07]} 5. Nc3 {[%emt 0:00:17]} Qc7 {[%emt 0:00:27]} 6. f4 {[%emt 0:00:06]} a6 {[%emt 0:00:08]} 7. Nxc6 {[%emt 0:00:11]} bxc6 {[%emt 0:00:08]} 8. Bd3 {[%emt 0:01:37]} d5 {[%emt 0:00:15]} 9. O-O {[%emt 0:01:36]} Nf6 {[%emt 0:00:36]} 10. Qe2 {[%emt 0:03:58]} Be7 {[%emt 0:00:56]} 11. Kh1 {[%emt 0:00:38]} O-O {[%emt 0:01:52]} 12. Bd2 {[%emt 0:00:10]} Bb7 {[%emt 0:01:29]} 13. Rae1 {[%emt 0:04:46]} Rfe8 {[%emt 0:03:49]} 14. e5 {[%emt 0:11:51]} Nd7 {[%emt 0:00:54]} 15. Na4 {[%emt 0:01:38]} c5 {[%emt 0:05:51]} 16. f5 {[%emt 0:08:52]} exf5 {[%emt 0:05:30]} 17. e6 {[%emt 0:00:15]} fxe6 {[%emt 0:01:15]} 18. Qxe6+ {[%emt 0:00:14]} Kh8 {[%emt 0:00:10]} 19. Bxf5 {[%emt 0:12:01]} Nf6 {[%emt 0:05:02]} 20. Nb6 {[%emt 0:02:44]} Rad8 {[%emt 0:02:46]} 21. Bf4 {[%emt 0:00:47]} Bd6 {[%emt 0:01:36]} 22. Bxd6 {[%emt 0:08:03]} Qxb6 {[%emt 0:07:47]} 23. Be7 {[%emt 0:00:13]} Qxe6 {[%emt 0:00:57]} 24. Rxe6 {[%emt 0:00:12]} Bc8 {[%emt 0:01:11]} 25. Ree1 {[%emt 0:00:16]} Bxf5 {[%emt 0:01:31]} 26. Bxd8 {[%emt 0:42:35]} Rxe1 {[%emt 0:00:42]} 27. Rxe1 {[%emt 0:00:00]} Ne4 {[%emt 0:02:39]} 28. Bb6 {[%emt 0:00:00]} Kg8 {[%emt 0:00:34]} 29. a3 {[%emt 0:00:00]} Kf7 {[%emt 0:01:15]} 30. b4 {[%emt 0:00:00]} c4 {[%emt 0:00:07]} 31. Bd4 {[%emt 0:00:00]} g6 {[%emt 0:00:11]} 32. c3 {[%emt 0:00:00]} Ke7 {[%emt 0:02:11]} 33. a4 {[%emt 0:00:00]} Bd7 {[%emt 0:00:20]} 34. Ra1 {[%emt 0:00:00]} Nd2 {[%emt 0:01:11]} 35. a5 {[%emt 0:00:00]} Nb3 {[%emt 0:01:07]} 36. Re1+ {[%emt 0:00:00]} Kd6 {[%emt 0:00:28]} 37. Bg7 {[%emt 0:00:00]} Bf5 {[%emt 0:02:44]} 38. Kg1 {[%emt 0:00:00]} Be4 {[%emt 0:08:12]} 39. Kf2 {[%emt 0:00:14]} h5 {[%emt 0:03:19]} 40. Rg1 {[%emt 0:03:25]} Nd2 {[%emt 0:03:07]} 41. Ke3 {[%emt 0:31:18]} Nb1 {[%emt 0:32:13]} 42. g4 {[%emt 0:01:07]} hxg4 {[%emt 0:00:22]} 43. Rxg4 {[%emt 0:00:20]} Na3 {[%emt 0:00:04]} 44. h4 {[%emt 0:00:00]} Nb5 {[%emt 0:00:00]} 45. Rg5 {[%emt 0:00:00]} Kc6 {[%emt 0:00:00]} 46. Be5 {[%emt 0:00:00]} Na7 {[%emt 0:00:00]} 47. Bd4 {[%emt 0:00:00]} Nb5 {[%emt 0:00:00]} 48. Be5 {[%emt 0:00:00]} Na7 {[%emt 0:00:00]} 49. Rg4 {[%emt 0:00:00]} Nc8 {[%emt 0:00:00]} 50. Rf4 {[%emt 0:00:00]} Ne7 {[%emt 0:00:00]} 51. Rf6+ {[%emt 0:00:00]} Kd7 {[%emt 0:00:00]} 52. Rxa6 {[%emt 0:00:00]} Nf5+ {[%emt 0:00:00]} 53. Kf4 {[%emt 0:00:00]} Bd3 {[%emt 0:00:00]} 54. Rxg6 {[%emt 0:00:00]} d4 {[%emt 0:00:00]} 55. Rg5 {[%emt 0:00:00]} Nxh4 {[%emt 0:00:00]} 56. Bxd4 {[%emt 0:00:00]} 1-0

[Event "AUT-ch Open 2020"]
[Site "Graz"]
[Date "2020.02.16"]
[Round "3.12"]
[White "Dimitrov, Vladimir"]
[Black "Kilgus, Georg"]
[Result "0-1"]
[ECO "E44"]
[WhiteElo "2285"]
[BlackElo "2450"]
[Annotator "ChessBase"]
[PlyCount "66"]
[EventDate "2020.02.14"]
[EventType "swiss"]
[EventCountry "AUT"]
[SourceTitle "playchess.com"]
[Source "ChessBase"]
[SourceQuality "1"]
[TimeControl "40/5400+30:1800+30"]

1. d4 {[%emt 0:00:00]} Nf6 {[%emt 0:00:00]} 2. c4 {[%emt 0:00:00]} e6 {[%emt 0:00:00]} 3. Nc3 {[%emt 0:00:00]} Bb4 {[%emt 0:00:00]} 4. e3 {[%emt 0:00:11]} b6 {[%emt 0:00:00]} 5. Nge2 {[%emt 0:00:43]} Ne4 {[%emt 0:00:00]} 6. Qc2 {[%emt 0:04:47]} Bb7 {[%emt 0:00:00]} 7. a3 {[%emt 0:05:37]} Bxc3+ {[%emt 0:00:02]} 8. Nxc3 {[%emt 0:00:09]} Nxc3 {[%emt 0:00:04]} 9. Qxc3 {[%emt 0:00:10]} d6 {[%emt 0:00:03]} 10. b3 {[%emt 0:04:31]} Nd7 {[%emt 0:02:13]} 11. Bb2 {[%emt 0:00:21]} Qh4 {[%emt 0:00:38]} 12. Ke2 {[%emt 0:07:31]} O-O {[%emt 0:22:28]} 13. f3 {[%emt 0:01:02]} f5 {[%emt 0:04:26]} 14. Qe1 {[%emt 0:08:48]} Qe7 {[%emt 0:14:52]} 15. Rd1 {[%emt 0:02:40]} e5 {[%emt 0:02:54]} 16. d5 {[%emt 0:04:41]} c6 {[%emt 0:09:56]} 17. dxc6 {[%emt 0:03:29]} Bxc6 {[%emt 0:00:02]} 18. Kf2 {[%emt 0:00:20]} g5 {[%emt 0:04:03]} 19. Qd2 {[%emt 0:02:50]} Rf6 {[%emt 0:00:06]} 20. Bd3 {[%emt 0:01:01]} g4 {[%emt 0:01:21]} 21. h3 {[%emt 0:05:53]} gxf3 {[%emt 0:04:03]} 22. gxf3 {[%emt 0:00:59]} Rg6 {[%emt 0:00:54]} 23. h4 {[%emt 0:02:43]} Bxf3 {[%emt 0:03:39]} 24. Kxf3 {[%emt 0:00:21]} e4+ {[%emt 0:00:01]} 25. Kf2 {[%emt 0:00:12]} exd3 {[%emt 0:00:13]} 26. Qxd3 {[%emt 0:00:28]} Qe4 {[%emt 0:06:57]} 27. Qd5+ {[%emt 0:06:10]} Qxd5 {[%emt 0:00:04]} 28. Rxd5 {[%emt 0:00:21]} Nc5 {[%emt 0:00:02]} 29. h5 {[%emt 0:03:30]} Ne4+ {[%emt 0:07:46]} 30. Kf3 {[%emt 0:00:17]} Rg3+ {[%emt 0:00:31]} 31. Kf4 {[%emt 0:00:10]} Rg2 {[%emt 0:00:00]} 32. Rxf5 {[%emt 0:00:11]} Re8 {[%emt 0:00:00]} 33. Be5 {[%emt 0:00:15]} Nd2 {[%emt 0:04:41]} 0-1

[Event "AUT-ch Open 2020"]
[Site "Graz"]
[Date "2020.02.16"]
[Round "3.13"]
[White "Li, Henry"]
[Black "Czernek, Tymon"]
[Result "1-0"]
[ECO "B97"]
[WhiteElo "2310"]
[BlackElo "2089"]
[Annotator "ChessBase"]
[PlyCount "155"]
[EventDate "2020.02.14"]
[EventType "swiss"]
[EventCountry "AUT"]
[SourceTitle "playchess.com"]
[Source "ChessBase"]
[SourceQuality "1"]
[TimeControl "40/5400+30:1800+30"]

1. e4 {[%emt 0:06:05]} c5 {[%emt 0:00:00]} 2. Nf3 {[%emt 0:00:06]} d6 {[%emt 0:00:00]} 3. d4 {[%emt 0:00:11]} cxd4 {[%emt 0:00:00]} 4. Nxd4 {[%emt 0:00:05]} Nf6 {[%emt 0:00:00]} 5. Nc3 {[%emt 0:00:06]} a6 {[%emt 0:00:00]} 6. Bg5 {[%emt 0:00:07]} e6 {[%emt 0:00:00]} 7. f4 {[%emt 0:00:07]} Qb6 {[%emt 0:00:08]} 8. Nb3 {[%emt 0:05:56]} Nbd7 {[%emt 0:03:28]} 9. Qf3 {[%emt 0:07:17]} Be7 {[%emt 0:02:44]} 10. O-O-O {[%emt 0:07:01]} O-O {[%emt 0:01:19]} 11. g4 {[%emt 0:10:19]} Nc5 {[%emt 0:03:06]} 12. Kb1 {[%emt 0:04:43]} Nxb3 {[%emt 0:05:52]} 13. axb3 {[%emt 0:00:51]} Qc6 {[%emt 0:00:06]} 14. Bg2 {[%emt 0:03:10]} Qc7 {[%emt 0:05:48]} 15. Qg3 {[%emt 0:03:08]} Rb8 {[%emt 0:01:22]} 16. f5 {[%emt 0:04:26]} Ne8 {[%emt 0:04:57]} 17. Bf4 {[%emt 0:02:17]} b5 {[%emt 0:01:07]} 18. e5 {[%emt 0:01:16]} Rb6 {[%emt 0:02:26]} 19. Ne4 {[%emt 0:09:27]} d5 {[%emt 0:02:15]} 20. Nc3 {[%emt 0:01:57]} b4 {[%emt 0:01:26]} 21. Na4 {[%emt 0:04:22]} Rc6 {[%emt 0:00:23]} 22. f6 {[%emt 0:04:16]} gxf6 {[%emt 0:00:27]} 23. exf6 {[%emt 0:00:49]} Bd6 {[%emt 0:00:05]} 24. Bxd6 {[%emt 0:00:36]} Qxd6 {[%emt 0:00:05]} 25. Qe3 {[%emt 0:00:34]} Qc7 {[%emt 0:03:23]} 26. Bf1 {[%emt 0:10:07]} e5 {[%emt 0:02:38]} 27. Rxd5 {[%emt 0:01:33]} Nxf6 {[%emt 0:00:18]} 28. Rc5 {[%emt 0:07:05]} Nxg4 {[%emt 0:03:03]} 29. Rxc6 {[%emt 0:01:09]} Qxc6 {[%emt 0:00:25]} 30. Rg1 {[%emt 0:00:01]} Kh8 {[%emt 0:01:08]} 31. Qe2 {[%emt 0:00:01]} f6 {[%emt 0:10:06]} 32. h3 {[%emt 0:02:32]} Nh6 {[%emt 0:00:21]} 33. Qd2 {[%emt 0:00:12]} Nf5 {[%emt 0:05:28]} 34. Qxb4 {[%emt 0:00:18]} Qd6 {[%emt 0:00:12]} 35. Qg4 {[%emt 0:01:33]} Be6 {[%emt 0:01:09]} 36. Bc4 {[%emt 0:01:20]} Bxc4 {[%emt 0:01:28]} 37. bxc4 {[%emt 0:00:33]} Qd4 {[%emt 0:00:40]} 38. c5 {[%emt 0:01:31]} Qxg4 {[%emt 0:00:35]} 39. hxg4 {[%emt 0:00:01]} Nd4 {[%emt 0:00:17]} 40. c3 {[%emt 0:01:31]} Nf3 {[%emt 0:00:05]} 41. Rg3 {[%emt 0:02:31]} e4 {[%emt 0:00:04]} 42. c6 {[%emt 0:06:50]} Re8 {[%emt 0:01:11]} 43. c7 {[%emt 0:00:38]} Rc8 {[%emt 0:03:56]} 44. Nc5 {[%emt 0:08:18]} Nd2+ {[%emt 0:01:20]} 45. Kc1 {[%emt 0:01:48]} Rxc7 {[%emt 0:00:42]} 46. Nxa6 {[%emt 0:00:47]} Rd7 {[%emt 0:00:16]} 47. Nc5 {[%emt 0:04:43]} Rd5 {[%emt 0:00:05]} 48. b4 {[%emt 0:00:55]} Kg8 {[%emt 0:02:06]} 49. Re3 {[%emt 0:00:45]} h5 {[%emt 0:00:34]} 50. Nxe4 {[%emt 0:05:03]} Nxe4 {[%emt 0:00:03]} 51. Rxe4 {[%emt 0:00:03]} h4 {[%emt 0:00:04]} 52. Kc2 {[%emt 0:01:02]} Kf7 {[%emt 0:00:30]} 53. c4 {[%emt 0:00:37]} Re5 {[%emt 0:00:06]} 54. Rd4 {[%emt 0:01:05]} h3 {[%emt 0:01:13]} 55. Rd3 {[%emt 0:00:51]} h2 {[%emt 0:00:19]} 56. Rh3 {[%emt 0:00:05]} Re2+ {[%emt 0:00:05]} 57. Kd3 {[%emt 0:01:32]} Rg2 {[%emt 0:01:13]} 58. Kd4 {[%emt 0:01:09]} Kg6 {[%emt 0:00:32]} 59. b5 {[%emt 0:01:00]} Rxg4+ {[%emt 0:00:19]} 60. Kc3 {[%emt 0:01:00]} Rg2 {[%emt 0:00:20]} 61. b6 {[%emt 0:00:10]} Kf5 {[%emt 0:00:11]} 62. b7 {[%emt 0:00:33]} Rg3+ {[%emt 0:00:24]} 63. Rxg3 {[%emt 0:00:15]} h1=Q {[%emt 0:00:10]} 64. b8=Q {[%emt 0:01:41]} Qe1+ {[%emt 0:01:52]} 65. Kb2 {[%emt 0:00:00]} Qd2+ {[%emt 0:00:08]} 66. Ka3 {[%emt 0:00:16]} Qc1+ {[%emt 0:00:30]} 67. Qb2 {[%emt 0:00:15]} Qxc4 {[%emt 0:00:05]} 68. Qf2+ {[%emt 0:00:45]} Ke6 {[%emt 0:00:21]} 69. Qe3+ {[%emt 0:00:26]} Kf5 {[%emt 0:00:25]} 70. Qf2+ {[%emt 0:00:20]} Ke6 {[%emt 0:00:06]} 71. Kb2 {[%emt 0:00:37]} Qb5+ {[%emt 0:00:13]} 72. Kc2 {[%emt 0:00:23]} Qa4+ {[%emt 0:00:09]} 73. Kd2 {[%emt 0:00:27]} Qa2+ {[%emt 0:00:05]} 74. Ke1 {[%emt 0:00:39]} Qb1+ {[%emt 0:00:09]} 75. Ke2 {[%emt 0:00:14]} Qb5+ {[%emt 0:00:06]} 76. Rd3 {[%emt 0:00:18]} Qb2+ {[%emt 0:00:07]} 77. Kf1 {[%emt 0:00:19]} Qb1+ {[%emt 0:00:04]} 78. Qe1+ {[%emt 0:00:03]} 1-0

[Event "AUT-ch Open 2020"]
[Site "Graz"]
[Date "2020.02.16"]
[Round "3.13"]
[White "Ninov, Dayan"]
[Black "Gajek, Radoslaw"]
[Result "0-1"]
[ECO "B22"]
[WhiteElo "2242"]
[BlackElo "2438"]
[Annotator "ChessBase"]
[PlyCount "122"]
[EventDate "2020.02.14"]
[EventType "swiss"]
[EventCountry "AUT"]
[SourceTitle "playchess.com"]
[Source "ChessBase"]
[SourceQuality "1"]
[TimeControl "40/5400+30:1800+30"]

1. e4 {[%emt 0:04:08]} c5 {[%emt 0:00:00]} 2. c3 {[%emt 0:00:06]} e6 {[%emt 0:03:26]} 3. d4 {[%emt 0:01:08]} d5 {[%emt 0:01:24]} 4. exd5 {[%emt 0:00:15]} exd5 {[%emt 0:00:37]} 5. Bb5+ {[%emt 0:00:22]} Bd7 {[%emt 0:01:31]} 6. Bxd7+ {[%emt 0:06:49]} Qxd7 {[%emt 0:02:57]} 7. Nf3 {[%emt 0:01:45]} Nc6 {[%emt 0:00:46]} 8. O-O {[%emt 0:00:10]} O-O-O {[%emt 0:00:51]} 9. dxc5 {[%emt 0:03:47]} Bxc5 {[%emt 0:00:29]} 10. b4 {[%emt 0:00:21]} Bd6 {[%emt 0:03:33]} 11. Be3 {[%emt 0:01:50]} Nf6 12. b5 {[%emt 0:04:14]} Ne5 {[%emt 0:06:09]} 13. Nbd2 {[%emt 0:05:01]} Qxb5 {[%emt 0:01:17]} 14. Nxe5 {[%emt 0:05:00]} Bxe5 {[%emt 0:00:07]} 15. Bxa7 {[%emt 0:00:43]} Qd3 {[%emt 0:05:48]} 16. Rb1 {[%emt 0:04:12]} Rd7 {[%emt 0:04:31]} 17. Nf3 {[%emt 0:23:33]} Qxd1 {[%emt 0:00:31]} 18. Rfxd1 {[%emt 0:00:04]} Bxc3 {[%emt 0:04:39]} 19. Rbc1 {[%emt 0:15:09]} Rc7 {[%emt 0:01:11]} 20. Rd3 {[%emt 0:04:01]} Ba5 {[%emt 0:01:06]} 21. Rxc7+ {[%emt 0:01:19]} Bxc7 {[%emt 0:00:22]} 22. Bd4 {[%emt 0:00:09]} Rd8 {[%emt 0:04:39]} 23. g3 {[%emt 0:01:38]} Ne8 {[%emt 0:05:41]} 24. Re3 {[%emt 0:01:25]} f6 {[%emt 0:03:58]} 25. Re7 {[%emt 0:02:36]} Bd6 {[%emt 0:00:18]} 26. Re2 {[%emt 0:00:03]} Nc7 {[%emt 0:01:40]} 27. Bb6 {[%emt 0:00:19]} Kd7 {[%emt 0:01:04]} 28. Rd2 {[%emt 0:01:40]} Ra8 {[%emt 0:02:32]} 29. Be3 {[%emt 0:07:14]} Bb4 {[%emt 0:01:21]} 30. Rb2 {[%emt 0:00:29]} Ra4 {[%emt 0:00:43]} 31. a3 {[%emt 0:02:20]} Bxa3 {[%emt 0:00:53]} 32. Rxb7 {[%emt 0:00:03]} Kc8 {[%emt 0:04:55]} 33. Rb6 {[%emt 0:01:14]} Rb4 {[%emt 0:01:14]} 34. Rxb4 {[%emt 0:02:59]} Bxb4 {[%emt 0:00:07]} 35. Kf1 {[%emt 0:00:03]} Kd7 {[%emt 0:00:31]} 36. Ke2 {[%emt 0:00:02]} Bc3 {[%emt 0:01:14]} 37. Bb6 {[%emt 0:01:44]} Nb5 {[%emt 0:00:51]} 38. Kd3 {[%emt 0:00:16]} Ke6 {[%emt 0:00:55]} 39. h3 {[%emt 0:00:24]} Be5 {[%emt 0:02:25]} 40. Bc5 {[%emt 0:00:12]} Nc3 {[%emt 0:01:23]} 41. Bf8 {[%emt 0:31:04]} Ne4 {[%emt 0:31:09]} 42. Ke3 {[%emt 0:00:35]} g6 {[%emt 0:02:20]} 43. Ba3 {[%emt 0:00:00]} f5 {[%emt 0:00:00]} 44. Nxe5 {[%emt 0:00:00]} Kxe5 {[%emt 0:00:00]} 45. Bb2+ {[%emt 0:00:00]} Kd6 {[%emt 0:00:00]} 46. g4 {[%emt 0:00:00]} f4+ {[%emt 0:00:00]} 47. Kxf4 {[%emt 0:00:00]} Nxf2 {[%emt 0:00:00]} 48. Ba3+ {[%emt 0:00:00]} Ke6 {[%emt 0:00:00]} 49. h4 {[%emt 0:00:00]} d4 {[%emt 0:00:00]} 50. Kf3 {[%emt 0:00:00]} Nd1 {[%emt 0:00:00]} 51. h5 {[%emt 0:01:23]} Ke5 {[%emt 0:00:00]} 52. hxg6 {[%emt 0:00:17]} hxg6 {[%emt 0:00:00]} 53. Bf8 {[%emt 0:00:44]} d3 {[%emt 0:00:00]} 54. Bg7+ {[%emt 0:00:55]} Kd5 {[%emt 0:00:00]} 55. Bh6 {[%emt 0:00:46]} Kc4 {[%emt 0:00:00]} 56. Ke4 {[%emt 0:01:56]} Kc3 {[%emt 0:00:00]} 57. Bf4 {[%emt 0:00:59]} Nf2+ {[%emt 0:00:00]} 58. Kf3 {[%emt 0:00:05]} Nh3 {[%emt 0:00:24]} 59. Bc7 {[%emt 0:01:21]} d2 {[%emt 0:02:23]} 60. Ba5+ {[%emt 0:00:01]} Kd3 {[%emt 0:00:12]} 61. Bxd2 {[%emt 0:00:04]} Kxd2 {[%emt 0:00:15]} 0-1

[Event "AUT-ch Open 2020"]
[Site "Graz"]
[Date "2020.02.16"]
[Round "3.14"]
[White "David, Alexandru-Vasile"]
[Black "Brinovec, David"]
[Result "1/2-1/2"]
[ECO "D31"]
[WhiteElo "2436"]
[BlackElo "2279"]
[Annotator "ChessBase"]
[PlyCount "101"]
[EventDate "2020.02.14"]
[EventType "swiss"]
[EventCountry "AUT"]
[SourceTitle "playchess.com"]
[Source "ChessBase"]
[SourceQuality "1"]
[TimeControl "40/5400+30:1800+30"]

1. d4 {[%emt 0:00:00]} d5 {[%emt 0:00:00]} 2. c4 {[%emt 0:00:00]} e6 {[%emt 0:00:00]} 3. Nc3 {[%emt 0:00:00]} a6 {[%emt 0:00:14]} 4. cxd5 {[%emt 0:00:07]} exd5 {[%emt 0:00:05]} 5. Bf4 {[%emt 0:00:08]} c6 {[%emt 0:00:07]} 6. e3 {[%emt 0:00:06]} Bd6 {[%emt 0:00:10]} 7. Bxd6 {[%emt 0:00:32]} Qxd6 {[%emt 0:00:08]} 8. Bd3 {[%emt 0:00:04]} Ne7 {[%emt 0:00:06]} 9. Qc2 {[%emt 0:00:53]} g6 {[%emt 0:11:13]} 10. Nge2 {[%emt 0:03:15]} Bf5 {[%emt 0:01:25]} 11. f3 {[%emt 0:00:59]} Bxd3 {[%emt 0:00:53]} 12. Qxd3 {[%emt 0:00:06]} Nd7 {[%emt 0:02:19]} 13. O-O-O {[%emt 0:03:28]} O-O-O {[%emt 0:05:49]} 14. e4 {[%emt 0:00:07]} dxe4 {[%emt 0:04:20]} 15. fxe4 {[%emt 0:00:56]} f5 {[%emt 0:00:44]} 16. Kb1 {[%emt 0:02:05]} Kb8 {[%emt 0:30:52]} 17. exf5 {[%emt 0:02:17]} Nxf5 {[%emt 0:00:24]} 18. g4 {[%emt 0:00:20]} Ne7 {[%emt 0:01:30]} 19. Ne4 {[%emt 0:02:25]} Qc7 {[%emt 0:01:10]} 20. Ng5 {[%emt 0:00:25]} Rde8 {[%emt 0:00:20]} 21. Nc3 {[%emt 0:01:23]} h6 {[%emt 0:06:00]} 22. Ne6 {[%emt 0:22:40]} Qd6 {[%emt 0:01:03]} 23. Rhe1 {[%emt 0:00:05]} Rhg8 {[%emt 0:03:37]} 24. Nc5 {[%emt 0:06:10]} Nxc5 {[%emt 0:11:22]} 25. dxc5 {[%emt 0:00:07]} Qxh2 {[%emt 0:08:10]} 26. Qe3 {[%emt 0:18:03]} Ka7 {[%emt 0:01:55]} 27. Rh1 {[%emt 0:02:22]} Qc7 {[%emt 0:01:31]} 28. Qxh6 {[%emt 0:00:24]} Qe5 {[%emt 0:00:32]} 29. Rhe1 {[%emt 0:02:06]} Qxc5 {[%emt 0:00:46]} 30. Ne4 {[%emt 0:00:05]} Qa5 {[%emt 0:05:03]} 31. Qe3+ {[%emt 0:01:37]} Ka8 {[%emt 0:00:01]} 32. Nf6 {[%emt 0:16:20]} Nd5 {[%emt 0:00:11]} 33. Qxe8+ {[%emt 0:00:04]} Rxe8 {[%emt 0:00:03]} 34. Rxe8+ {[%emt 0:00:06]} Ka7 {[%emt 0:00:01]} 35. Nxd5 {[%emt 0:00:06]} cxd5 {[%emt 0:00:05]} 36. Re5 {[%emt 0:11:33]} Qa4 {[%emt 0:00:33]} 37. Rexd5 {[%emt 0:00:11]} Qxg4 {[%emt 0:00:03]} 38. Re1 {[%emt 0:00:08]} g5 {[%emt 0:01:44]} 39. a3 {[%emt 0:00:44]} Qf4 {[%emt 0:00:36]} 40. Rd3 {[%emt 0:01:05]} g4 {[%emt 0:00:40]} 41. Ree3 {[%emt 0:32:09]} a5 {[%emt 0:30:57]} 42. Kc2 {[%emt 0:01:33]} a4 {[%emt 0:01:40]} 43. Kc3 {[%emt 0:00:34]} Qc7+ {[%emt 0:00:21]} 44. Kd2 {[%emt 0:01:40]} Qf4 {[%emt 0:00:44]} 45. Ke1 {[%emt 0:02:00]} g3 {[%emt 0:00:00]} 46. Rxg3 {[%emt 0:00:00]} Qc1+ {[%emt 0:00:00]} 47. Ke2 {[%emt 0:00:00]} Qxb2+ {[%emt 0:00:00]} 48. Kd1 {[%emt 0:00:00]} Qb1+ {[%emt 0:00:00]} 49. Kd2 {[%emt 0:00:00]} Qb2+ {[%emt 0:00:00]} 50. Kd1 {[%emt 0:00:00]} Qb1+ {[%emt 0:00:00]} 51. Kd2 {[%emt 0:00:00]} 1/2-1/2

[Event "AUT-ch Open 2020"]
[Site "Graz"]
[Date "2020.02.16"]
[Round "3.14"]
[White "Mujacic, Haris"]
[Black "Ongut, Tamas Gunes"]
[Result "0-1"]
[ECO "A48"]
[WhiteElo "2077"]
[BlackElo "2302"]
[Annotator "ChessBase"]
[PlyCount "66"]
[EventDate "2020.02.14"]
[EventType "swiss"]
[EventCountry "AUT"]
[SourceTitle "playchess.com"]
[Source "ChessBase"]
[SourceQuality "1"]
[TimeControl "40/5400+30:1800+30"]

1. d4 {[%emt 0:03:06]} Nf6 {[%emt 0:00:00]} 2. Nf3 {[%emt 0:00:09]} g6 {[%emt 0:00:00]} 3. Bg5 {[%emt 0:00:22]} Bg7 {[%emt 0:00:03]} 4. Nbd2 {[%emt 0:00:07]} O-O {[%emt 0:04:34]} 5. e4 {[%emt 0:01:29]} d6 {[%emt 0:01:21]} 6. c3 {[%emt 0:00:19]} c5 {[%emt 0:00:28]} 7. dxc5 {[%emt 0:00:04]} dxc5 {[%emt 0:00:05]} 8. Bc4 {[%emt 0:00:08]} Nc6 {[%emt 0:00:05]} 9. Qe2 {[%emt 0:00:08]} h6 {[%emt 0:03:57]} 10. Bxf6 {[%emt 0:00:47]} exf6 {[%emt 0:00:22]} 11. O-O {[%emt 0:02:12]} Qc7 {[%emt 0:01:46]} 12. Nh4 {[%emt 0:00:16]} Ne7 {[%emt 0:14:45]} 13. f4 {[%emt 0:00:05]} f5 {[%emt 0:17:30]} 14. e5 {[%emt 0:02:26]} Be6 {[%emt 0:11:14]} 15. Bxe6 {[%emt 0:11:51]} fxe6 {[%emt 0:00:02]} 16. Nc4 {[%emt 0:01:22]} Rad8 {[%emt 0:16:09]} 17. Rad1 {[%emt 0:07:09]} Rxd1 {[%emt 0:10:39]} 18. Rxd1 {[%emt 0:00:20]} Rd8 {[%emt 0:00:46]} 19. Rxd8+ {[%emt 0:35:43]} Qxd8 {[%emt 0:00:08]} 20. Nd6 {[%emt 0:00:07]} Qd7 {[%emt 0:00:41]} 21. Qc4 {[%emt 0:04:24]} b6 {[%emt 0:00:57]} 22. Nf3 {[%emt 0:04:34]} Nd5 {[%emt 0:00:56]} 23. g3 {[%emt 0:04:44]} g5 {[%emt 0:08:55]} 24. fxg5 {[%emt 0:10:53]} hxg5 {[%emt 0:00:06]} 25. Nxg5 {[%emt 0:00:18]} Bxe5 {[%emt 0:00:10]} 26. Ndf7 {[%emt 0:00:16]} Bg7 {[%emt 0:01:39]} 27. Qh4 {[%emt 0:00:34]} Nf6 {[%emt 0:02:07]} 28. Qf4 {[%emt 0:01:16]} Qd1+ {[%emt 0:00:15]} 29. Kg2 {[%emt 0:00:29]} Qe2+ {[%emt 0:00:32]} 30. Kg1 {[%emt 0:01:49]} Ng4 {[%emt 0:01:44]} 31. h3 {[%emt 0:05:45]} e5 {[%emt 0:00:58]} 32. Qxf5 {[%emt 0:02:00]} Qh2+ {[%emt 0:00:08]} 33. Kf1 {[%emt 0:00:15]} Ne3+ {[%emt 0:03:28]} 0-1

[Event "AUT-ch Open 2020"]
[Site "Graz"]
[Date "2020.02.16"]
[Round "3.15"]
[White "Prato, Simon"]
[Black "Milikow, Yoav"]
[Result "0-1"]
[ECO "C00"]
[WhiteElo "2040"]
[BlackElo "2296"]
[Annotator "ChessBase"]
[PlyCount "26"]
[EventDate "2020.02.14"]
[EventType "swiss"]
[EventCountry "AUT"]
[SourceTitle "playchess.com"]
[Source "ChessBase"]
[SourceQuality "1"]
[TimeControl "40/5400+30:1800+30"]

1. e4 {[%emt 0:00:00]} e6 {[%emt 0:00:00]} 2. b3 {[%emt 0:00:01]} d5 {[%emt 0:00:02]} 3. Bb2 {[%emt 0:00:08]} Nc6 {[%emt 0:00:54]} 4. Nc3 {[%emt 0:07:57]} Nf6 {[%emt 0:04:21]} 5. exd5 {[%emt 0:04:24]} exd5 {[%emt 0:00:15]} 6. Qe2+ {[%emt 0:01:22]} Be7 {[%emt 0:03:15]} 7. O-O-O {[%emt 0:02:32]} Bf5 {[%emt 0:03:39]} 8. f3 {[%emt 0:04:50]} Bxc2 {[%emt 0:00:21]} 9. Re1 {[%emt 0:00:59]} O-O {[%emt 0:03:13]} 10. Qf2 {[%emt 0:02:41]} Bg6 {[%emt 0:02:28]} 11. g4 {[%emt 0:02:03]} d4 {[%emt 0:08:09]} 12. Ne4 {[%emt 0:02:19]} Nxe4 {[%emt 0:00:18]} 13. fxe4 {[%emt 0:00:04]} Bh4 {[%emt 0:00:10]} 0-1

[Event "AUT-ch Open 2020"]
[Site "Graz"]
[Date "2020.02.16"]
[Round "3.16"]
[White "Danner, Georg"]
[Black "Schloffer, Jasmin-Denise"]
[Result "1-0"]
[ECO "E14"]
[WhiteElo "2295"]
[BlackElo "2080"]
[Annotator "ChessBase"]
[PlyCount "37"]
[EventDate "2020.02.14"]
[EventType "swiss"]
[EventCountry "AUT"]
[SourceTitle "playchess.com"]
[Source "ChessBase"]
[SourceQuality "1"]
[TimeControl "40/5400+30:1800+30"]

1. d4 {[%emt 0:00:00]} Nf6 {[%emt 0:00:00]} 2. Nf3 {[%emt 0:00:00]} e6 {[%emt 0:00:00]} 3. e3 {[%emt 0:00:00]} b6 {[%emt 0:00:00]} 4. Bd3 {[%emt 0:00:15]} Bb7 {[%emt 0:00:07]} 5. O-O {[%emt 0:00:06]} Be7 {[%emt 0:02:56]} 6. c4 {[%emt 0:00:06]} O-O {[%emt 0:00:25]} 7. Nc3 {[%emt 0:00:06]} d5 {[%emt 0:02:42]} 8. b3 {[%emt 0:00:05]} c5 {[%emt 0:01:56]} 9. Bb2 {[%emt 0:00:10]} Nbd7 {[%emt 0:02:20]} 10. Qe2 {[%emt 0:02:39]} Rc8 {[%emt 0:03:55]} 11. cxd5 {[%emt 0:09:18]} Nxd5 {[%emt 0:03:08]} 12. Nxd5 {[%emt 0:00:13]} Bxd5 {[%emt 0:03:57]} 13. Rad1 {[%emt 0:01:44]} Qc7 {[%emt 0:05:40]} 14. Bb1 {[%emt 0:32:59]} Nf6 {[%emt 0:10:11]} 15. e4 {[%emt 0:12:45]} Ba8 {[%emt 0:01:47]} 16. d5 {[%emt 0:01:08]} exd5 {[%emt 0:03:54]} 17. exd5 {[%emt 0:00:05]} Ne8 {[%emt 0:09:38]} 18. Rfe1 {[%emt 0:08:56]} Bd8 {[%emt 0:05:48]} 19. Qxe8 {[%emt 0:09:12]} 1-0